[Event "Titled Tuesday Blitz August 1 Early 2023"]
[White "Levine, David"]
[Black "Zaksaite, Salomeja"]
[WhiteFideId "2011611"]
[BlackFideId "12801496"]
[WhiteElo "2112"]
[BlackElo "2292"]
[Result "0-1"]
[Round "9"]
[TimeControl "180+1"]
[Date "2023.08.01"]
[WhiteClock "0:01:05"]
[BlackClock "0:01:26"]
[Board "173"]

1. d4 {[%clk 0:03:00]}  Nf6 {[%clk 0:02:58]} 2. c4 {[%clk 0:02:59]}  g6 {[%clk 0:02:58]} 3. g3 {[%clk 0:02:59]}  Bg7 {[%clk 0:02:57]} 4. Bg2 {[%clk 0:02:59]}  d6 {[%clk 0:02:58]} 5. Nf3 {[%clk 0:02:59]}  O-O {[%clk 0:02:57]} 6. O-O {[%clk 0:02:59]}  Nc6 {[%clk 0:02:57]} 7. Nc3 {[%clk 0:02:59]}  e5 {[%clk 0:02:57]} 8. d5 {[%clk 0:02:57]}  Nb8 {[%clk 0:02:56]} 9. e4 {[%clk 0:02:56]}  a5 {[%clk 0:02:56]} 10. Ne1 {[%clk 0:02:55]}  Nbd7 {[%clk 0:02:56]} 11. Nd3 {[%clk 0:02:54]}  b6 {[%clk 0:02:55]} 12. h3 {[%clk 0:02:47]}  Nc5 {[%clk 0:02:55]} 13. b3 {[%clk 0:02:46]}  Nfd7 {[%clk 0:02:51]} 14. Be3 {[%clk 0:02:31]}  f5 {[%clk 0:02:45]} 15. Nxc5 {[%clk 0:02:27]}  Nxc5 {[%clk 0:02:43]} 16. Bxc5 {[%clk 0:02:26]}  bxc5 {[%clk 0:02:39]} 17. Rc1 {[%clk 0:02:21]}  Qe8 {[%clk 0:02:34]} 18. exf5 {[%clk 0:02:17]}  gxf5 {[%clk 0:02:33]} 19. f4 {[%clk 0:02:17]}  Qg6 {[%clk 0:02:33]} 20. Kh2 {[%clk 0:02:13]}  exf4 {[%clk 0:02:29]} 21. Rxf4 {[%clk 0:02:12]}  Be5 {[%clk 0:02:28]} 22. Rf3 {[%clk 0:02:04]}  h5 {[%clk 0:02:26]} 23. h4 {[%clk 0:02:03]}  f4 {[%clk 0:02:26]} 24. Rxf4 {[%clk 0:01:49]}  Bxf4 {[%clk 0:02:20]} 25. gxf4 {[%clk 0:01:49]}  Rxf4 {[%clk 0:02:20]} 26. Qe1 {[%clk 0:01:44]}  Bd7 {[%clk 0:02:15]} 27. Ne2 {[%clk 0:01:40]}  Rf6 {[%clk 0:01:54]} 28. Rc3 {[%clk 0:01:36]}  Re8 {[%clk 0:01:47]} 29. Rg3 {[%clk 0:01:26]}  Bg4 {[%clk 0:01:47]} 30. Bf3 {[%clk 0:01:13]}  Rxf3 {[%clk 0:01:35]} 31. Nf4 {[%clk 0:01:12]}  Rxe1 {[%clk 0:01:31]} 32. Nxg6 {[%clk 0:01:11]}  Rxg3 {[%clk 0:01:28]} 33. Kxg3 {[%clk 0:01:05]}  Ra1 {[%clk 0:01:26]} 0-1


[Site "https://www.chess.com"]

[Event "Titled Tuesday Blitz August 1 Early 2023"]
[White "Clawitter, Craig"]
[Black "Lohani, Sujana"]
[WhiteFideId "2023105"]
[BlackFideId "12311987"]
[WhiteElo "2239"]
[BlackElo "1957"]
[Result "1/2-1/2"]
[Round "9"]
[TimeControl "180+1"]
[Date "2023.08.01"]
[WhiteClock "0:00:05"]
[BlackClock "0:00:45"]
[Board "176"]

1. e4 {[%clk 0:03:00]}  c6 {[%clk 0:02:59]} 2. d4 {[%clk 0:02:59]}  d5 {[%clk 0:02:59]} 3. e5 {[%clk 0:03:00]}  Bf5 {[%clk 0:02:58]} 4. Nf3 {[%clk 0:03:00]}  e6 {[%clk 0:02:48]} 5. Be2 {[%clk 0:02:59]}  c5 {[%clk 0:02:44]} 6. Be3 {[%clk 0:02:57]}  cxd4 {[%clk 0:02:43]} 7. Nxd4 {[%clk 0:02:58]}  Bg6 {[%clk 0:02:42]} 8. Nd2 {[%clk 0:02:53]}  Ne7 {[%clk 0:02:41]} 9. O-O {[%clk 0:02:37]}  Nec6 {[%clk 0:02:36]} 10. N2f3 {[%clk 0:02:33]}  Be7 {[%clk 0:02:35]} 11. c4 {[%clk 0:02:32]}  O-O {[%clk 0:02:34]} 12. cxd5 {[%clk 0:01:57]}  Qxd5 {[%clk 0:02:32]} 13. Nxc6 {[%clk 0:01:56]}  Nxc6 {[%clk 0:02:23]} 14. Qxd5 {[%clk 0:01:54]}  exd5 {[%clk 0:02:24]} 15. Rfd1 {[%clk 0:01:52]}  Rfd8 {[%clk 0:02:22]} 16. a3 {[%clk 0:01:33]}  Rd7 {[%clk 0:02:21]} 17. b4 {[%clk 0:01:27]}  a6 {[%clk 0:02:21]} 18. Rac1 {[%clk 0:01:25]}  Rad8 {[%clk 0:02:19]} 19. Bxa6 {[%clk 0:01:23]}  Nxb4 {[%clk 0:02:13]} 20. Bb5 {[%clk 0:01:06]}  Na2 {[%clk 0:01:52]} 21. Bxd7 {[%clk 0:00:54]}  Nxc1 {[%clk 0:01:52]} 22. Rxd5 {[%clk 0:00:31]}  Bxa3 {[%clk 0:01:40]} 23. e6 {[%clk 0:00:20]}  Kf8 {[%clk 0:01:35]} 24. Ne5 {[%clk 0:00:12]}  Ne2+ {[%clk 0:01:24]} 25. Kf1 {[%clk 0:00:11]}  Nc3 {[%clk 0:01:23]} 26. Nxg6+ {[%clk 0:00:08]}  hxg6 {[%clk 0:01:21]} 27. Bc5+ {[%clk 0:00:08]}  Bxc5 {[%clk 0:01:20]} 28. Rxc5 {[%clk 0:00:09]}  Ne4 {[%clk 0:01:17]} 29. Rc8 {[%clk 0:00:09]}  Rxc8 {[%clk 0:01:12]} 30. Bxc8 {[%clk 0:00:09]}  b5 {[%clk 0:01:12]} 31. exf7 {[%clk 0:00:09]}  b4 {[%clk 0:01:11]} 32. Be6 {[%clk 0:00:08]}  b3 {[%clk 0:01:05]} 33. Bxb3 {[%clk 0:00:07]}  Nd2+ {[%clk 0:01:06]} 34. Ke2 {[%clk 0:00:08]}  Nxb3 {[%clk 0:01:06]} 35. Ke3 {[%clk 0:00:08]}  Kxf7 {[%clk 0:01:06]} 36. Kf4 {[%clk 0:00:09]}  Nc5 {[%clk 0:01:03]} 37. h4 {[%clk 0:00:08]}  Kf6 {[%clk 0:01:04]} 38. g4 {[%clk 0:00:07]}  Ne6+ {[%clk 0:01:04]} 39. Kg3 {[%clk 0:00:07]}  Nd4 {[%clk 0:01:03]} 40. f4 {[%clk 0:00:07]}  Ne2+ {[%clk 0:01:02]} 41. Kf3 {[%clk 0:00:07]}  Nd4+ {[%clk 0:01:02]} 42. Ke4 {[%clk 0:00:07]}  Ne6 {[%clk 0:01:01]} 43. f5 {[%clk 0:00:06]}  gxf5+ {[%clk 0:01:01]} 44. gxf5 {[%clk 0:00:06]}  Nf8 {[%clk 0:00:57]} 45. Kf4 {[%clk 0:00:06]}  Nd7 {[%clk 0:00:55]} 46. Kg4 {[%clk 0:00:06]}  Kf7 {[%clk 0:00:55]} 47. Kg5 {[%clk 0:00:06]}  Nf6 {[%clk 0:00:56]} 48. h5 {[%clk 0:00:06]}  Ne4+ {[%clk 0:00:54]} 49. Kf4 {[%clk 0:00:06]}  Nd6 {[%clk 0:00:54]} 50. Kg5 {[%clk 0:00:05]}  Nc4 {[%clk 0:00:47]} 51. h6 {[%clk 0:00:05]}  gxh6+ {[%clk 0:00:44]} 52. Kxh6 {[%clk 0:00:05]}  Kf6 {[%clk 0:00:44]} 53. Kh5 {[%clk 0:00:05]}  Kxf5 {[%clk 0:00:45]} 1/2-1/2


[Site "https://www.chess.com"]

[Event "Titled Tuesday Blitz August 1 Early 2023"]
[White "Filgueira, Hernan"]
[Black "Goughfather"]
[WhiteFideId "101770"]
[WhiteElo "2561"]
[BlackElo "2088"]
[Result "1-0"]
[Round "9"]
[TimeControl "180+1"]
[Date "2023.08.01"]
[WhiteClock "0:01:03"]
[BlackClock "0:00:00"]
[Board "178"]

1. e4 {[%clk 0:02:59]}  c6 {[%clk 0:02:55]} 2. Nc3 {[%clk 0:02:55]}  d5 {[%clk 0:02:55]} 3. Nf3 {[%clk 0:02:56]}  Nf6 {[%clk 0:02:55]} 4. e5 {[%clk 0:02:55]}  Ne4 {[%clk 0:02:55]} 5. Ne2 {[%clk 0:02:54]}  Qb6 {[%clk 0:02:39]} 6. d4 {[%clk 0:02:53]}  Bg4 {[%clk 0:02:34]} 7. h3 {[%clk 0:02:51]}  Bh5 {[%clk 0:02:32]} 8. g4 {[%clk 0:02:50]}  Bg6 {[%clk 0:02:31]} 9. h4 {[%clk 0:02:40]}  h5 {[%clk 0:02:27]} 10. Nf4 {[%clk 0:02:21]}  hxg4 {[%clk 0:01:52]} 11. Nxg6 {[%clk 0:02:21]}  fxg6 {[%clk 0:01:53]} 12. Ng5 {[%clk 0:02:16]}  Nxg5 {[%clk 0:01:31]} 13. Bxg5 {[%clk 0:02:15]}  Qxb2 {[%clk 0:01:18]} 14. Bd3 {[%clk 0:02:14]}  Nd7 {[%clk 0:01:00]} 15. Bxg6+ {[%clk 0:02:11]}  Kd8 {[%clk 0:01:00]} 16. Rb1 {[%clk 0:01:54]}  Qc3+ {[%clk 0:00:45]} 17. Qd2 {[%clk 0:01:52]}  Qxd2+ {[%clk 0:00:38]} 18. Kxd2 {[%clk 0:01:52]}  Nb6 {[%clk 0:00:38]} 19. Bd3 {[%clk 0:01:44]}  Kd7 {[%clk 0:00:30]} 20. a4 {[%clk 0:01:39]}  Rb8 {[%clk 0:00:18]} 21. e6+ {[%clk 0:01:36]}  Kxe6 {[%clk 0:00:15]} 22. Bf4 {[%clk 0:01:36]}  Re8 {[%clk 0:00:07]} 23. Rhe1+ {[%clk 0:01:14]}  Kf7 {[%clk 0:00:07]} 24. Rh1 {[%clk 0:01:02]}  e6 {[%clk 0:00:00]} 25. h5 {[%clk 0:01:03]} 1-0


[Site "https://www.chess.com"]

[Event "Titled Tuesday Blitz August 1 Early 2023"]
[White "Wisniowski, Natalie"]
[Black "Kuchava, Ana"]
[WhiteFideId "30929261"]
[BlackFideId "13605348"]
[WhiteElo "1997"]
[BlackElo "2191"]
[Result "1-0"]
[Round "9"]
[TimeControl "180+1"]
[Date "2023.08.01"]
[WhiteClock "0:00:44"]
[BlackClock "0:00:49"]
[Board "181"]

1. e4 {[%clk 0:03:00]}  c5 {[%clk 0:02:56]} 2. d4 {[%clk 0:03:00]}  cxd4 {[%clk 0:02:55]} 3. c3 {[%clk 0:03:00]}  Nf6 {[%clk 0:02:55]} 4. e5 {[%clk 0:02:57]}  Nd5 {[%clk 0:02:51]} 5. Nf3 {[%clk 0:02:57]}  Nc6 {[%clk 0:02:48]} 6. cxd4 {[%clk 0:02:51]}  d6 {[%clk 0:02:46]} 7. Bc4 {[%clk 0:02:47]}  Nb6 {[%clk 0:02:42]} 8. Bb5 {[%clk 0:02:45]}  d5 {[%clk 0:02:21]} 9. O-O {[%clk 0:02:39]}  Bg4 {[%clk 0:02:19]} 10. h3 {[%clk 0:02:33]}  Bxf3 {[%clk 0:02:14]} 11. Qxf3 {[%clk 0:02:32]}  e6 {[%clk 0:02:14]} 12. Nc3 {[%clk 0:02:26]}  Be7 {[%clk 0:02:13]} 13. Qg3 {[%clk 0:02:23]}  Kf8 {[%clk 0:01:49]} 14. Be3 {[%clk 0:02:16]}  a6 {[%clk 0:01:46]} 15. Be2 {[%clk 0:02:09]}  Nc4 {[%clk 0:01:34]} 16. Bxc4 {[%clk 0:01:48]}  dxc4 {[%clk 0:01:35]} 17. Rad1 {[%clk 0:01:44]}  Nb4 {[%clk 0:01:33]} 18. Qf3 {[%clk 0:01:31]}  b5 {[%clk 0:01:25]} 19. d5 {[%clk 0:01:23]}  exd5 {[%clk 0:01:14]} 20. Nxd5 {[%clk 0:01:22]}  Nd3 {[%clk 0:01:13]} 21. Nxe7 {[%clk 0:01:17]}  Qxe7 {[%clk 0:01:14]} 22. Qxa8+ {[%clk 0:01:15]}  Qe8 {[%clk 0:01:11]} 23. Bc5+ {[%clk 0:01:01]}  Nxc5 {[%clk 0:00:56]} 24. Rd8 {[%clk 0:00:59]}  Ke7 {[%clk 0:00:56]} 25. Rxe8+ {[%clk 0:00:52]}  Rxe8 {[%clk 0:00:57]} 26. Qa7+ {[%clk 0:00:50]}  Nd7 {[%clk 0:00:56]} 27. Rd1 {[%clk 0:00:49]}  Rd8 {[%clk 0:00:55]} 28. Qxa6 {[%clk 0:00:47]}  Nxe5 {[%clk 0:00:55]} 29. Rxd8 {[%clk 0:00:47]}  Kxd8 {[%clk 0:00:56]} 30. Qd6+ {[%clk 0:00:46]}  Nd7 {[%clk 0:00:49]} 31. Qd5 {[%clk 0:00:44]} 1-0


[Site "https://www.chess.com"]

[Event "Titled Tuesday Blitz August 1 Early 2023"]
[White "Navyblue1"]
[Black "Cardenas Carbajal, Nilson"]
[BlackFideId "8401128"]
[WhiteElo "1929"]
[BlackElo "2134"]
[Result "0-1"]
[Round "9"]
[TimeControl "180+1"]
[Date "2023.08.01"]
[WhiteClock "0:00:00"]
[BlackClock "0:00:24"]
[Board "182"]

1. d4 {[%clk 0:03:00]}  d5 {[%clk 0:02:56]} 2. c4 {[%clk 0:02:55]}  e6 {[%clk 0:02:56]} 3. Nc3 {[%clk 0:02:46]}  Nf6 {[%clk 0:02:56]} 4. cxd5 {[%clk 0:02:46]}  exd5 {[%clk 0:02:56]} 5. Bg5 {[%clk 0:02:46]}  c6 {[%clk 0:02:56]} 6. Qc2 {[%clk 0:02:40]}  Be7 {[%clk 0:02:42]} 7. e3 {[%clk 0:02:33]}  O-O {[%clk 0:02:41]} 8. Bd3 {[%clk 0:02:33]}  h6 {[%clk 0:02:35]} 9. Bh4 {[%clk 0:02:32]}  Re8 {[%clk 0:02:28]} 10. Nge2 {[%clk 0:02:31]}  Ne4 {[%clk 0:02:21]} 11. Bxe7 {[%clk 0:02:28]}  Qxe7 {[%clk 0:02:22]} 12. O-O {[%clk 0:02:27]}  Bf5 {[%clk 0:02:18]} 13. Rae1 {[%clk 0:02:20]}  Nd7 {[%clk 0:02:05]} 14. f3 {[%clk 0:02:00]}  Nxc3 {[%clk 0:02:03]} 15. Nxc3 {[%clk 0:01:59]}  Bxd3 {[%clk 0:02:02]} 16. Qxd3 {[%clk 0:02:00]}  Qg5 {[%clk 0:01:49]} 17. e4 {[%clk 0:01:23]}  dxe4 {[%clk 0:01:46]} 18. fxe4 {[%clk 0:01:10]}  Rad8 {[%clk 0:01:46]} 19. Qf3 {[%clk 0:00:51]}  Re7 {[%clk 0:01:31]} 20. Rd1 {[%clk 0:00:44]}  Nf6 {[%clk 0:01:25]} 21. e5 {[%clk 0:00:36]}  Nd5 {[%clk 0:01:22]} 22. Ne4 {[%clk 0:00:23]}  Qe3+ {[%clk 0:01:19]} 23. Kh1 {[%clk 0:00:20]}  Qxf3 {[%clk 0:01:08]} 24. Rxf3 {[%clk 0:00:19]}  b6 {[%clk 0:01:02]} 25. Kg1 {[%clk 0:00:18]}  Nb4 {[%clk 0:00:57]} 26. a3 {[%clk 0:00:17]}  Nd5 {[%clk 0:00:54]} 27. Kf2 {[%clk 0:00:17]}  f6 {[%clk 0:00:52]} 28. Rc1 {[%clk 0:00:12]}  fxe5 {[%clk 0:00:49]} 29. dxe5 {[%clk 0:00:12]}  c5 {[%clk 0:00:48]} 30. Nc3 {[%clk 0:00:11]}  Nxc3 {[%clk 0:00:47]} 31. Rcxc3 {[%clk 0:00:11]}  Rxe5 {[%clk 0:00:47]} 32. Rc2 {[%clk 0:00:11]}  Rf8 {[%clk 0:00:46]} 33. Rxf8+ {[%clk 0:00:10]}  Kxf8 {[%clk 0:00:47]} 34. Rd2 {[%clk 0:00:09]}  Ke7 {[%clk 0:00:47]} 35. Rc2 {[%clk 0:00:09]}  g5 {[%clk 0:00:45]} 36. b4 {[%clk 0:00:09]}  Kd6 {[%clk 0:00:42]} 37. bxc5+ {[%clk 0:00:09]}  bxc5 {[%clk 0:00:40]} 38. Rb2 {[%clk 0:00:08]}  Kd5 {[%clk 0:00:39]} 39. Rb7 {[%clk 0:00:08]}  a5 {[%clk 0:00:38]} 40. Ra7 {[%clk 0:00:08]}  Kc4 {[%clk 0:00:27]} 41. Rxa5 {[%clk 0:00:07]}  Kb3 {[%clk 0:00:25]} 42. Ra8 {[%clk 0:00:06]}  c4 {[%clk 0:00:24]} 43. a4 {[%clk 0:00:00]}  c3 {[%clk 0:00:24]} 0-1


[Site "https://www.chess.com"]

[Event "Titled Tuesday Blitz August 1 Early 2023"]
[White "Larina, Maria"]
[Black "Bocangel Chavez, Marjoire J."]
[WhiteFideId "24113182"]
[BlackFideId "3810500"]
[WhiteElo "2114"]
[BlackElo "1652"]
[Result "0-1"]
[Round "9"]
[TimeControl "180+1"]
[Date "2023.08.01"]
[WhiteClock "0:00:07"]
[BlackClock "0:00:07"]
[Board "183"]

1. e4 {[%clk 0:03:00]}  e6 {[%clk 0:03:00]} 2. d4 {[%clk 0:03:00]}  d5 {[%clk 0:03:00]} 3. Nc3 {[%clk 0:03:01]}  Bb4 {[%clk 0:02:57]} 4. exd5 {[%clk 0:03:00]}  exd5 {[%clk 0:02:57]} 5. Bd3 {[%clk 0:03:01]}  Ne7 {[%clk 0:02:56]} 6. Qh5 {[%clk 0:03:00]}  Nbc6 {[%clk 0:02:04]} 7. Nf3 {[%clk 0:02:40]}  g6 {[%clk 0:01:59]} 8. Qh6 {[%clk 0:02:35]}  Bf5 {[%clk 0:01:59]} 9. Qg7 {[%clk 0:02:23]}  Rg8 {[%clk 0:01:56]} 10. Qxh7 {[%clk 0:02:23]}  Bxd3 {[%clk 0:01:55]} 11. cxd3 {[%clk 0:02:23]}  Qd6 {[%clk 0:01:27]} 12. O-O {[%clk 0:02:19]}  O-O-O {[%clk 0:01:26]} 13. Qh4 {[%clk 0:01:53]}  Nf5 {[%clk 0:01:24]} 14. Qg4 {[%clk 0:01:53]}  Rh8 {[%clk 0:01:13]} 15. h3 {[%clk 0:01:40]}  Kb8 {[%clk 0:01:06]} 16. a3 {[%clk 0:01:40]}  Ba5 {[%clk 0:01:04]} 17. Nb5 {[%clk 0:01:35]}  Qf8 {[%clk 0:00:58]} 18. Bf4 {[%clk 0:01:33]}  Bb6 {[%clk 0:00:57]} 19. Rfc1 {[%clk 0:01:23]}  a6 {[%clk 0:00:57]} 20. Nc3 {[%clk 0:01:01]}  Ncxd4 {[%clk 0:00:37]} 21. Nxd4 {[%clk 0:01:01]}  Rh4 {[%clk 0:00:36]} 22. Qf3 {[%clk 0:00:42]}  Nxd4 {[%clk 0:00:32]} 23. Qg3 {[%clk 0:00:42]}  Rxf4 {[%clk 0:00:24]} 24. Qxf4 {[%clk 0:00:41]}  Nb3 {[%clk 0:00:23]} 25. Na4 {[%clk 0:00:36]}  Nxc1 {[%clk 0:00:09]} 26. Rxc1 {[%clk 0:00:37]}  Qd6 {[%clk 0:00:09]} 27. Qh4 {[%clk 0:00:20]}  Rf8 {[%clk 0:00:08]} 28. Nxb6 {[%clk 0:00:20]}  Qxb6 {[%clk 0:00:07]} 29. b4 {[%clk 0:00:19]}  Qd6 {[%clk 0:00:07]} 30. Qg4 {[%clk 0:00:16]}  f5 {[%clk 0:00:08]} 31. Qf3 {[%clk 0:00:16]}  g5 {[%clk 0:00:08]} 32. d4 {[%clk 0:00:14]}  f4 {[%clk 0:00:07]} 33. Qg4 {[%clk 0:00:14]}  Qf6 {[%clk 0:00:06]} 34. Qd7 {[%clk 0:00:11]}  c6 {[%clk 0:00:06]} 35. Re1 {[%clk 0:00:10]}  Rd8 {[%clk 0:00:06]} 36. Qg4 {[%clk 0:00:07]}  Ka7 {[%clk 0:00:05]} 37. Re5 {[%clk 0:00:05]}  Rg8 {[%clk 0:00:05]} 38. Qe2 {[%clk 0:00:03]}  Rg7 {[%clk 0:00:05]} 39. Qc2 {[%clk 0:00:03]}  Qd6 {[%clk 0:00:04]} 40. Qc3 {[%clk 0:00:03]}  Re7 {[%clk 0:00:03]} 41. f3 {[%clk 0:00:03]}  Rxe5 {[%clk 0:00:03]} 42. dxe5 {[%clk 0:00:03]}  Qe6 {[%clk 0:00:03]} 43. Qd4+ {[%clk 0:00:03]}  b6 {[%clk 0:00:03]} 44. Kf2 {[%clk 0:00:03]}  Kb7 {[%clk 0:00:03]} 45. a4 {[%clk 0:00:04]}  Kc7 {[%clk 0:00:03]} 46. a5 {[%clk 0:00:04]}  bxa5 {[%clk 0:00:03]} 47. bxa5 {[%clk 0:00:04]}  Kd7 {[%clk 0:00:03]} 48. Qa7+ {[%clk 0:00:05]}  Ke8 {[%clk 0:00:04]} 49. Qb8+ {[%clk 0:00:05]}  Kf7 {[%clk 0:00:04]} 50. Qc7+ {[%clk 0:00:05]}  Kg6 {[%clk 0:00:04]} 51. Qd6 {[%clk 0:00:05]}  Kf5 {[%clk 0:00:04]} 52. Qf8+ {[%clk 0:00:04]}  Kg6 {[%clk 0:00:03]} 53. Qd8 {[%clk 0:00:03]}  Kf5 {[%clk 0:00:04]} 54. Qc7 {[%clk 0:00:03]}  Qxe5 {[%clk 0:00:03]} 55. Qxc6 {[%clk 0:00:03]}  Qd4+ {[%clk 0:00:03]} 56. Ke2 {[%clk 0:00:03]}  Qe3+ {[%clk 0:00:04]} 57. Kd1 {[%clk 0:00:03]}  Qd3+ {[%clk 0:00:04]} 58. Ke1 {[%clk 0:00:03]}  Qe3+ {[%clk 0:00:04]} 59. Kd1 {[%clk 0:00:04]}  Qd3+ {[%clk 0:00:04]} 60. Kc1 {[%clk 0:00:04]}  Qc4+ {[%clk 0:00:04]} 61. Qxc4 {[%clk 0:00:04]}  dxc4 {[%clk 0:00:05]} 62. Kd2 {[%clk 0:00:05]}  Ke5 {[%clk 0:00:05]} 63. Kc3 {[%clk 0:00:05]}  Kd5 {[%clk 0:00:06]} 64. Kc2 {[%clk 0:00:05]}  Kd4 {[%clk 0:00:06]} 65. Kd2 {[%clk 0:00:05]}  c3+ {[%clk 0:00:07]} 66. Kc2 {[%clk 0:00:06]}  Kc4 {[%clk 0:00:07]} 67. Kc1 {[%clk 0:00:06]}  Kd3 {[%clk 0:00:08]} 68. Kd1 {[%clk 0:00:07]}  Ke3 {[%clk 0:00:08]} 69. Ke1 {[%clk 0:00:07]}  c2 {[%clk 0:00:07]} 70. Kf1 {[%clk 0:00:07]}  c1=Q# {[%clk 0:00:07]} 0-1


[Site "https://www.chess.com"]

[Event "Titled Tuesday Blitz August 1 Early 2023"]
[White "Andreikin, Dmitry"]
[Black "Pichot, Alan"]
[WhiteFideId "4158814"]
[BlackFideId "110973"]
[WhiteElo "3055"]
[BlackElo "2845"]
[Result "1-0"]
[Round "10"]
[TimeControl "180+1"]
[Date "2023.08.01"]
[WhiteClock "0:01:18"]
[BlackClock "0:00:49"]
[Board "3"]

1. d4 {[%clk 0:03:00]}  Nf6 {[%clk 0:02:57]} 2. c4 {[%clk 0:03:00]}  e6 {[%clk 0:02:57]} 3. Nf3 {[%clk 0:02:59]}  d5 {[%clk 0:02:48]} 4. Bg5 {[%clk 0:02:59]}  h6 {[%clk 0:02:44]} 5. Bxf6 {[%clk 0:02:58]}  Qxf6 {[%clk 0:02:45]} 6. e3 {[%clk 0:02:59]}  c6 {[%clk 0:02:44]} 7. Nbd2 {[%clk 0:02:56]}  Nd7 {[%clk 0:02:44]} 8. Bd3 {[%clk 0:02:55]}  g5 {[%clk 0:02:44]} 9. O-O {[%clk 0:02:48]}  g4 {[%clk 0:02:40]} 10. Ne1 {[%clk 0:02:48]}  h5 {[%clk 0:02:41]} 11. f4 {[%clk 0:02:48]}  Bd6 {[%clk 0:02:21]} 12. c5 {[%clk 0:02:45]}  Bc7 {[%clk 0:02:21]} 13. b4 {[%clk 0:02:44]}  a6 {[%clk 0:02:15]} 14. Bc2 {[%clk 0:02:40]}  Qg7 {[%clk 0:01:56]} 15. Nd3 {[%clk 0:02:40]}  f5 {[%clk 0:01:55]} 16. a4 {[%clk 0:02:38]}  Nf6 {[%clk 0:01:45]} 17. Ne5 {[%clk 0:02:36]}  h4 {[%clk 0:01:36]} 18. b5 {[%clk 0:02:31]}  a5 {[%clk 0:01:36]} 19. Bd3 {[%clk 0:02:13]}  Nd7 {[%clk 0:01:26]} 20. bxc6 {[%clk 0:02:07]}  Nxe5 {[%clk 0:01:26]} 21. cxb7 {[%clk 0:02:04]}  Bxb7 {[%clk 0:01:27]} 22. fxe5 {[%clk 0:02:03]}  Bd8 {[%clk 0:01:22]} 23. Rb1 {[%clk 0:01:59]}  Bg5 {[%clk 0:01:19]} 24. Qe2 {[%clk 0:01:58]}  O-O {[%clk 0:01:18]} 25. Rb6 {[%clk 0:01:53]}  Bc8 {[%clk 0:01:16]} 26. Kh1 {[%clk 0:01:46]}  Ra7 {[%clk 0:01:12]} 27. Nb1 {[%clk 0:01:27]}  Raf7 {[%clk 0:01:08]} 28. Nc3 {[%clk 0:01:21]}  f4 {[%clk 0:01:06]} 29. Qxg4 {[%clk 0:01:19]}  fxe3 {[%clk 0:01:04]} 30. Rxf7 {[%clk 0:01:19]}  Rxf7 {[%clk 0:00:49]} 31. Rb8 {[%clk 0:01:18]} 1-0


[Site "https://www.chess.com"]

[Event "Titled Tuesday Blitz August 1 Early 2023"]
[White "Nguyen, Ngoc Truong Son"]
[Black "Shimanov, Aleksandr"]
[WhiteFideId "12401110"]
[BlackFideId "4198603"]
[WhiteElo "2914"]
[BlackElo "2963"]
[Result "1-0"]
[Round "10"]
[TimeControl "180+1"]
[Date "2023.08.01"]
[WhiteClock "0:00:43"]
[BlackClock "0:00:00"]
[Board "5"]

1. d4 {[%clk 0:03:00]}  Nf6 {[%clk 0:02:55]} 2. c4 {[%clk 0:03:00]}  e6 {[%clk 0:02:52]} 3. Nf3 {[%clk 0:03:00]}  d5 {[%clk 0:02:51]} 4. Nc3 {[%clk 0:02:59]}  c5 {[%clk 0:02:50]} 5. cxd5 {[%clk 0:02:59]}  Nxd5 {[%clk 0:02:51]} 6. e4 {[%clk 0:02:58]}  Nxc3 {[%clk 0:02:51]} 7. bxc3 {[%clk 0:02:59]}  cxd4 {[%clk 0:02:51]} 8. cxd4 {[%clk 0:03:00]}  Bb4+ {[%clk 0:02:52]} 9. Bd2 {[%clk 0:03:01]}  Bxd2+ {[%clk 0:02:53]} 10. Qxd2 {[%clk 0:03:01]}  O-O {[%clk 0:02:53]} 11. Bc4 {[%clk 0:03:02]}  b5 {[%clk 0:02:54]} 12. Bxb5 {[%clk 0:02:55]}  Bb7 {[%clk 0:02:54]} 13. Bd3 {[%clk 0:02:54]}  Nc6 {[%clk 0:02:54]} 14. Rb1 {[%clk 0:02:15]}  Rb8 {[%clk 0:02:53]} 15. Qc3 {[%clk 0:02:10]}  Rc8 {[%clk 0:02:51]} 16. O-O {[%clk 0:01:56]}  Ne5 {[%clk 0:02:42]} 17. Qd2 {[%clk 0:01:53]}  Nxf3+ {[%clk 0:02:42]} 18. gxf3 {[%clk 0:01:54]}  Rc7 {[%clk 0:02:43]} 19. Qe3 {[%clk 0:01:50]}  Rd7 {[%clk 0:02:34]} 20. Rfd1 {[%clk 0:01:46]}  Ba8 {[%clk 0:02:25]} 21. Bf1 {[%clk 0:01:45]}  Qe7 {[%clk 0:02:24]} 22. a4 {[%clk 0:01:39]}  Rfd8 {[%clk 0:02:22]} 23. a5 {[%clk 0:01:40]}  g6 {[%clk 0:02:21]} 24. a6 {[%clk 0:01:38]}  Rd6 {[%clk 0:02:19]} 25. Rb2 {[%clk 0:01:20]}  Qd7 {[%clk 0:02:17]} 26. Rc2 {[%clk 0:01:13]}  Qe7 {[%clk 0:02:12]} 27. Rdc1 {[%clk 0:01:11]}  R6d7 {[%clk 0:01:45]} 28. Rc8 {[%clk 0:01:09]}  Kg7 {[%clk 0:01:41]} 29. Qf4 {[%clk 0:01:02]}  Rxd4 {[%clk 0:01:20]} 30. R1c7 {[%clk 0:00:48]}  Qe8 {[%clk 0:00:41]} 31. Rxa8 {[%clk 0:00:44]}  e5 {[%clk 0:00:00]} 32. Rxd8 {[%clk 0:00:43]} 1-0


[Site "https://www.chess.com"]